fUST/lending_fUST_20240911
["ID","MTS","AMOUNT","RATE_DAILY","PERIOD"]
[337742131,1726017043603,-2000.0,0.00038,7]
[337742132,1726017043613,-1000.0,0.00038,26]
[337742133,1726017043625,-500.0,0.00038045,7]
[337742134,1726017043636,-500.0,0.0003805,7]
[337742135,1726017043647,-55013.04180589,0.000381,120]
[337742162,1726017046577,-18985.6,0.000381,120]
[337742172,1726017046664,-4.49452945,0.000381,120]
[337742182,1726017046743,-5502.8554883,0.000381,120]
[337742185,1726017046755,-10025.01719799,0.000381,120]
[337742187,1726017046764,-500.0,0.00038121,7]
[337742189,1726017046773,-500.0,0.00038135,15]
[337742191,1726017046783,-500.0,0.00038135,7]
[337742193,1726017046792,-500.0,0.00038135,15]
[337742195,1726017046801,-500.0,0.00038135,15]
[337742196,1726017046810,-500.0,0.00038135,15]
[337742198,1726017046819,-500.0,0.00038135,15]
[337742200,1726017046829,-174.48214218,0.00038135,7]
[337742202,1726017046839,-500.0,0.00038135,15]
[337742204,1726017046848,-500.0,0.00038135,15]
[337742206,1726017046858,-500.0,0.00038135,15]
[337742208,1726017046868,-500.0,0.00038135,15]
[337742210,1726017046877,-500.0,0.00038135,15]
[337742212,1726017046891,-500.0,0.00038135,15]
[337742215,1726017046901,-480.0,0.00038135,15]
[337742216,1726017046911,-500.0,0.00038135,15]
[337742218,1726017046921,-500.0,0.00038135,15]
[337742249,1726017047190,-500.0,0.00038135,15]
[337742250,1726017047225,-415.40459609,0.00038135,15]
[337742251,1726017047234,-500.0,0.00038135,15]
[337742252,1726017047247,-500.0,0.00038135,15]
[337742253,1726017047257,-500.0,0.00038135,15]
[337742254,1726017047266,-500.0,0.00038135,15]
[337742255,1726017047275,-500.0,0.00038135,15]
[337742256,1726017047285,-500.0,0.00038135,15]
[337742257,1726017047294,-500.0,0.00038135,15]
[337742258,1726017047303,-500.0,0.00038135,15]
[337742259,1726017047313,-500.0,0.00038135,15]
[337742260,1726017047322,-500.0,0.00038135,15]
[337742261,1726017047331,-500.0,0.00038135,15]
[337742262,1726017047340,-500.0,0.00038135,15]
[337742263,1726017047349,-500.0,0.00038135,15]
[337742264,1726017047359,-500.0,0.00038135,15]
[337742265,1726017047369,-500.0,0.00038135,15]
[337742266,1726017047378,-500.0,0.00038135,15]
[337742267,1726017047387,-500.0,0.00038135,15]
[337742268,1726017047398,-500.0,0.00038135,15]
[337742269,1726017047407,-500.0,0.00038135,15]
[337742270,1726017047417,-500.0,0.00038135,15]
[337742271,1726017047426,-445.09728864,0.00038135,15]
[337742272,1726017047435,-5841.02355371,0.00038135,31]
[337742273,1726017047445,-45500.35930508,0.00038136,60]
[337742282,1726017808001,-169.57943732,0.000325,120]
[337742283,1726017808025,-137.60056268,0.000354,31]
[337742284,1726017808052,-15.98943732,0.000354,31]
[337742285,1726017808076,-153.07231703,0.0003759,22]
[337742286,1726017808099,-153.59,0.000377,31]
[337742287,1726017808122,-153.59,0.000377,31]
[337742288,1726017810171,229.35824565,0.00038104,31]
[337742293,1726017955119,-160.0,0.00034017,3]
[337742294,1726017955140,-160.0,0.00035488,4]
[337742295,1726017955163,-250.0,0.00035599,2]
[337742296,1726017955183,-175.122593,0.00035616,2]
[337742297,1726017955204,-500.0,0.00036195,2]
[337742298,1726017955224,-500.0,0.00036695,2]
[337742299,1726017955247,-160.0,0.00036959,5]
[337742300,1726017955268,-194.89086116,0.00036959,5]
[337742301,1726017955288,-852.969431,0.00037195,2]
[337742302,1726017955308,-153.0,0.00037534,2]
[337742303,1726017955332,-153.0,0.00037534,2]
[337742304,1726017955354,-153.9046295,0.00037534,2]
[337742305,1726017955375,-153.07231704,0.0003759,22]
[337742306,1726017955396,-500.0,0.000376,7]
[337742307,1726017955416,-500.0,0.00037745,7]
[337742308,1726017955437,-107.42989755,0.00037769,7]
[337742314,1726018036111,-295.53559958,0.0003758,30]
[337742322,1726018215411,151.0,0.0003,120]
[337742323,1726018215998,151.0,0.00033342,120]
[337742325,1726018227993,160.14,0.000354,31]
[337742336,1726018232058,-630.7017,0.00035992,30]
[337742337,1726018232069,-151.0,0.00036685,120]
[337742338,1726018232079,-1046.33496549,0.00037489,2]
[337742339,1726018232088,-1368.46866027,0.0003758,30]
[337742340,1726018232097,-500.0,0.00037589,7]
[337742341,1726018232107,-500.0,0.00037617,7]
[337742342,1726018232118,-500.0,0.00037655,7]
[337742343,1726018232130,-500.0,0.00037669,7]
[337742344,1726018232141,-160.14,0.000377,31]
[337742345,1726018232151,-160.14,0.000377,31]
[337742346,1726018232162,-190.15387301,0.00037917,2]
[337742347,1726018232171,-1022.77409045,0.00037917,2]
[337742348,1726018232181,-500.0,0.00037974,7]
[337742349,1726018232191,-1368.16829917,0.00038005,2]
[337742350,1726018232200,-500.0,0.0003803,7]
[337742351,1726018232210,-500.0,0.00038073,5]
[337742352,1726018232221,-500.0,0.00038073,5]
[337742353,1726018232231,-500.0,0.00038073,3]
[337742354,1726018232242,-159.5802,0.00038073,5]
[337742355,1726018232252,-503.4699173,0.00038073,2]
[337742356,1726018232266,-637.4075586,0.00038073,3]
[337742357,1726018232276,-565.89,0.00038085,3]
[337742358,1726018232286,-282.94,0.00038085,3]
[337742359,1726018232299,-4496.46,0.00038085,3]
[337742360,1726018232310,-861.52,0.00038085,3]
[337742361,1726018232320,-850.17316524,0.00038085,3]
[337742365,1726018238007,-2896.87683476,0.00038085,3]
[337742366,1726018238017,-657.41387642,0.00038085,3]
[337742372,1726018238251,-57.12552547,0.00038085,3]
[337742440,1726018246604,-87.7108046,0.00038005,2]
[337742487,1726018893832,451.0,0.00028,120]
[337742501,1726019242166,-150.0,0.00021,2]
[337742502,1726019242188,-155.868592,0.000325,120]
[337742503,1726019242210,-229.5492305,0.00034711,2]
[337742504,1726019242232,-500.59190044,0.00035,5]
[337742505,1726019242257,-160.16,0.000354,31]
[337742506,1726019242278,-207.4389013,0.00036,120]
[337742507,1726019242299,-601.6218,0.00037,120]
[337742508,1726019242320,-640.13623568,0.00037,4]
[337742549,1726019432398,160.17,0.000354,31]
[337742572,1726019438051,-8713.78832332,0.00037,4]
[337742574,1726019438061,-1000.0,0.00037,2]
[337742576,1726019438070,-500.0,0.00037,7]
[337742578,1726019438079,-3028.04776053,0.000374,31]
[337742580,1726019438088,-27858.91796797,0.000374,120]
[337742582,1726019438102,-5149.79600221,0.000374,120]
[337742584,1726019438113,-904.04,0.000374,120]
[337742586,1726019438124,-5975.24602982,0.000374,120]
[337742588,1726019438134,-500.0,0.00037582,7]
[337742591,1726019438143,-500.0,0.00037588,7]
[337742592,1726019438152,-153.21873523,0.0003759,22]
[337742594,1726019438162,-160.17,0.000377,31]
[337742597,1726019438182,-160.17,0.000377,31]
[337742599,1726019438193,-500.0,0.00037703,7]
[337742601,1726019438202,-260.0,0.00037963,2]
[337742603,1726019438212,-2080.92,0.00037963,3]
[337742605,1726019438221,-3249.01,0.00037963,3]
[337742607,1726019438231,-282.94,0.00037964,3]
[337742609,1726019438240,-848.84,0.00037964,3]
[337742611,1726019438250,-236.59901938,0.00037972,15]
[337742613,1726019438260,-500.0,0.00037972,15]
[337742615,1726019438270,-281.70238,0.00037972,15]
[337742617,1726019438280,-500.0,0.00037972,15]
[337742619,1726019438290,-423.58121321,0.00037972,15]
[337742621,1726019438299,-1512.47645116,0.00037973,31]
[337742623,1726019438309,-1000.0,0.00037973,2]
[337742625,1726019438318,-84967.52475202,0.00037974,5]
[337742667,1726019441915,-1396.1905114,0.00037974,5]
[337742679,1726019443134,-36.78822179,0.00037974,5]
[337742712,1726019447504,260.183142,0.00030652,2]
[337742713,1726019448380,260.183142,0.00031036,2]
[337742714,1726019448416,260.183142,0.00031419,2]
[337742715,1726019448476,260.183142,0.00031802,2]
[337742716,1726019448847,260.183142,0.00032185,2]
[337742717,1726019452985,178.443167,0.00030652,2]
[337742718,1726019453386,178.443167,0.00032185,2]
[337742720,1726019501502,356.78,0.00032185,2]
[337742766,1726019860039,153.0,0.00028,120]
[337742781,1726020358155,-224.16440352,0.00034667,2]
[337742783,1726020452152,-1965.76543882,0.00034494,24]
[337742784,1726020452174,-1.98789838,0.00034667,2]
[337742785,1726020452194,-160.17937718,0.00034839,24]
[337742786,1726020452215,-2222.3771069,0.00035004,2]
[337742787,1726020452235,-846.1778404,0.000366,2]
[337742789,1726020581623,3602.1356764,0.00035516,2]
[337742798,1726020632127,-496.37323804,0.00035963,2]
[337742800,1726020632139,-3055.187583,0.00035963,2]
[337742806,1726020632305,-5980.40553979,0.00035963,2]
[337742808,1726020632318,-2409.39728107,0.00035963,2]
[337742810,1726020632328,-153.8221596,0.000366,2]
[337742812,1726020632337,-189.69280749,0.00037,2]
[337742845,1726020638280,-810.30719251,0.00037,2]
[337742848,1726020638290,-314.33706031,0.00037576,7]
[337742850,1726020638306,-185.66293969,0.00037576,7]
[337742852,1726020638319,-153.21207986,0.0003759,22]
[337742854,1726020638330,-500.0,0.00037662,7]
[337742856,1726020638342,-500.0,0.00037684,7]
[337742858,1726020638351,-500.0,0.00037694,7]
[337742860,1726020638362,-1000.0,0.00037813,2]
[337742862,1726020638371,-500.0,0.00037826,7]
[337742864,1726020638380,-565.88,0.00037843,3]
[337742865,1726020638390,-1566.84,0.00037843,3]
[337742866,1726020638401,-2446.37,0.00037843,3]
[337742867,1726020638411,-153.89760978,0.00037844,7]
[337742868,1726020638421,-154.39,0.00037844,7]
[337742869,1726020638431,-154.08510978,0.00037844,7]
[337742870,1726020638441,-154.08510978,0.00037844,7]
[337742871,1726020638450,-154.08510978,0.00037844,7]
[337742872,1726020638459,-154.08510978,0.00037844,7]
[337742873,1726020638469,-154.08510978,0.00037844,7]
[337742874,1726020638478,-154.08510978,0.00037844,7]
[337742875,1726020638488,-154.08510978,0.00037844,7]
[337742876,1726020638498,-500.0,0.00037846,7]
[337742877,1726020638508,-636.4076277,0.00037852,15]
[337742878,1726020638517,-272.59427391,0.00037852,15]
[337742879,1726020638527,-500.0,0.00037852,15]
[337742880,1726020638537,-500.0,0.00037852,15]
[337742881,1726020638546,-500.0,0.00037852,15]
[337742882,1726020638556,-500.0,0.00037852,15]
[337742883,1726020638566,-500.0,0.00037852,15]
[337742884,1726020638576,-500.0,0.00037852,15]
[337742885,1726020638586,-500.0,0.00037852,15]
[337742886,1726020638596,-500.0,0.00037852,15]
[337742887,1726020638606,-500.0,0.00037852,15]
[337742888,1726020638616,-500.0,0.00037852,15]
[337742889,1726020638626,-500.0,0.00037852,15]
[337742890,1726020638636,-610.86569145,0.00037852,15]
[337742891,1726020638646,-500.0,0.00037852,15]
[337742892,1726020638658,-500.0,0.00037852,15]
[337742893,1726020638668,-500.0,0.00037852,15]
[337742894,1726020638677,-158.17569036,0.00037852,15]
[337742895,1726020638687,-500.0,0.00037852,15]
[337742896,1726020638696,-500.0,0.00037852,15]
[337742897,1726020638706,-500.0,0.00037852,15]
[337742898,1726020638715,-500.0,0.00037852,15]
[337742899,1726020638724,-500.0,0.00037852,15]
[337742900,1726020638734,-500.0,0.00037852,15]
[337742901,1726020638743,-500.0,0.00037852,15]
[337742902,1726020638753,-500.0,0.00037852,15]
[337742903,1726020638763,-237.42325805,0.00037852,15]
[337742904,1726020638775,-500.0,0.00037852,15]
[337742905,1726020638786,-500.0,0.00037852,15]
[337742906,1726020638803,-756.23822558,0.00037852,31]
[337742907,1726020638812,-1514.02388027,0.00037852,31]
[337742908,1726020638824,-6357.57851706,0.00037853,5]
[337742909,1726020639469,-52163.98414836,0.00037853,5]
[337742913,1726020640452,-1999.98674101,0.00037853,5]
[337742914,1726020640465,-34548.62892561,0.00037853,5]
[337742915,1726020640477,-3347.71910499,0.00037853,5]
[337742916,1726020640489,-1965.16002399,0.00037853,5]
[337742917,1726020640500,-14147.73859398,0.00037853,5]
[337742918,1726020640510,-25487.39101662,0.00037853,5]
[337742961,1726020643365,-577.29898775,0.00037853,5]
[337742963,1726020643377,-3300.1543449,0.00037853,5]
[337742966,1726020643388,-2106.18151288,0.00037853,5]
[337742968,1726020643399,-2624.77507516,0.00037853,5]
[337742970,1726020643411,-430.81394038,0.00037853,5]
[337742972,1726020643422,-4586.2,0.00037853,5]
[337742974,1726020643434,-2782.7239011,0.00037853,5]
[337742977,1726020643444,-56673.25174255,0.00037853,5]
[337742979,1726020643455,-1990.93389066,0.00037853,5]
[337742981,1726020643465,-355.75741407,0.00037853,30]
[337742983,1726020643476,-183426.29375594,0.00037854,5]
[337742985,1726020643487,-27883.68128776,0.00037854,5]
[337743335,1726021545148,-364.95287947,0.00023,2]
[337743336,1726021635119,-295.53559958,0.00022885,2]
[337743337,1726021635145,-157.71,0.000354,31]
[337743338,1726021635167,-907.0,0.00037,5]
[337743339,1726021635190,-1520.21863218,0.00037,2]
[337743340,1726021635212,-499.40704078,0.000373,7]
[337743342,1726021719365,1493.61,0.00024,60]
[337743343,1726021719386,1406.39,0.00024,60]
[337743344,1726021719408,1266.9509768,0.00024,60]
[337743345,1726021748268,-562.86744963,0.0002988,30]
[337743346,1726021748289,-44192.89203356,0.00034999,3]
[337743347,1726021748309,-4482.85456355,0.00035,2]
[337743350,1726021825215,150.0,0.00023,2]
[337743360,1726021838431,-152.46026327,0.00037,7]
[337743361,1726021838442,-500.59295922,0.000373,7]
[337743362,1726021838451,-2000.0,0.000375,6]
[337743363,1726021838461,-154.25787604,0.0003759,22]
[337743364,1726021838470,-500.0,0.00037637,7]
[337743365,1726021838480,-500.0,0.0003766,7]
[337743366,1726021838489,-1000.0,0.00037744,2]
[337743367,1726021838499,-787.06,0.00037749,3]
[337743368,1726021838508,-1239.85,0.00037749,3]
[337743369,1726021838518,-1832.0,0.00037749,3]
[337743370,1726021838527,-500.0,0.00037751,7]
[337743371,1726021838536,-500.0,0.00037758,15]
[337743372,1726021838545,-500.0,0.00037758,15]
[337743373,1726021838554,-427.60598402,0.00037758,15]
[337743374,1726021838563,-500.0,0.00037758,15]
[337743375,1726021838572,-445.48533939,0.00037758,15]
[337743376,1726021838582,-190.81599174,0.00037758,15]
[337743377,1726021838590,-500.0,0.00037758,15]
[337743378,1726021838599,-500.0,0.00037758,15]
[337743379,1726021838608,-500.0,0.00037758,15]
[337743380,1726021838617,-500.0,0.00037758,15]
[337743381,1726021838626,-500.0,0.00037758,15]
[337743382,1726021838637,-500.0,0.00037758,15]
[337743383,1726021838646,-236.85054944,0.00037758,15]
[337743384,1726021838656,-500.0,0.00037758,15]
[337743385,1726021838665,-500.0,0.00037758,15]
[337743386,1726021838674,-500.0,0.00037758,15]
[337743387,1726021838683,-500.0,0.00037758,15]
[337743388,1726021838691,-500.0,0.00037758,15]
[337743389,1726021838700,-500.0,0.00037758,15]
[337743390,1726021838709,-500.0,0.00037758,15]
[337743391,1726021838721,-500.0,0.00037758,15]
[337743392,1726021838732,-500.0,0.00037758,15]
[337743393,1726021838742,-450.0,0.00037758,15]
[337743394,1726021838754,-378.11911279,0.00037759,31]
[337743395,1726021838764,-49120.867232,0.00037759,5]
[337743396,1726021838776,-41126.28173732,0.00037759,5]
[337743397,1726021838795,-3379.26480309,0.00037759,5]
[337743588,1726021846443,-290.471,0.00036772,2]
[337743590,1726021846453,-7180.39776459,0.00037759,5]
[337743591,1726021846463,-70293.15836572,0.00037759,5]
[337743595,1726022749135,-501.51324535,0.00032473,5]
[337743596,1726022749156,-500.67323358,0.00032473,3]
[337743597,1726022749176,-502.6250753,0.000325,5]
[337743598,1726022749197,-500.79848461,0.000325,5]
[337743599,1726022749219,-155.97,0.000354,31]
[337743600,1726022749240,-208.11534,0.00037096,2]
[337743601,1726022749264,-306.2842329,0.00037096,2]
[337743602,1726022749284,-785.30979694,0.00037251,2]
[337743603,1726022826106,-1559.06402679,0.00037459,2]
[337743604,1726022826128,-3712.9623726,0.0003746,2]
[337743606,1726022950108,-178.443167,0.00030652,2]
[337743607,1726022950134,-260.183142,0.00030652,2]
[337743608,1726022950160,-260.183142,0.00031036,2]
[337743609,1726022950187,-260.183142,0.00031419,2]
[337743610,1726022950213,-260.183142,0.00031802,2]
[337743611,1726022950237,-178.443167,0.00032185,2]
[337743612,1726022950262,-260.183142,0.00032185,2]
[337743613,1726022950288,-239.5492305,0.00035,2]
[337743614,1726023023307,207.4389013,0.00035,120]
[337743674,1726023032767,-480.7636435,0.000371,120]
[337743676,1726023032779,-345.52981619,0.000371,120]
[337743840,1726023038753,-42221.88012959,0.000371,120]
[337743847,1726023038899,-2559.33975607,0.000371,120]
[337743848,1726023039444,-10000.0,0.000371,120]
[337743900,1726023046807,-156.6,0.000354,31]
[337743901,1726023046817,-429.18071104,0.000371,120]
[337743902,1726023046920,-17162.97159299,0.000371,120]
[337743903,1726023046931,-1000.0,0.000375,7]
[337743904,1726023046942,-1536.19,0.00037549,3]
[337743905,1726023046953,-500.0,0.00037553,7]
[337743906,1726023046964,-500.0,0.00037557,15]
[337743907,1726023046975,-500.0,0.00037557,15]
[337743908,1726023046986,-500.0,0.00037557,15]
[337743909,1726023046997,-380.79538461,0.00037557,15]
[337743910,1726023047011,-500.0,0.00037557,15]
[337743911,1726023047022,-500.0,0.00037557,15]
[337743912,1726023047033,-500.0,0.00037557,15]
[337743913,1726023047045,-311.83973757,0.00037557,15]
[337743914,1726023047056,-500.0,0.00037557,15]
[337743915,1726023047067,-500.0,0.00037557,15]
[337743916,1726023047077,-500.0,0.00037557,15]
[337743917,1726023047087,-500.0,0.00037557,15]
[337743918,1726023047098,-249.32418881,0.00037557,15]
[337743919,1726023047107,-500.0,0.00037557,15]
[337743920,1726023047117,-500.0,0.00037557,15]
[337743921,1726023047129,-6965.0426651,0.00037558,31]
[337743922,1726023047140,-2271.03582039,0.00037558,31]
[337743923,1726023047150,-52221.42498028,0.00037558,5]
[337743924,1726023047163,-15539.74187713,0.00037558,5]
[337743961,1726024039234,-150.0,0.00021,2]
[337743962,1726024039259,-318.17954748,0.00031717,4]
[337743964,1726024156143,-9623.7468201,0.00031717,4]
[337744025,1726024238780,-156.61,0.000354,31]
[337744026,1726024238790,-1364.18102345,0.000369,2]
[337744027,1726024238800,-9999.849999,0.00037,7]
[337744028,1726024238809,-23971.33159622,0.00037,2]
[337744029,1726024238819,-1000.0,0.00037,7]
[337744030,1726024238828,-1356.5575197,0.00037116,2]
[337744031,1726024238944,-4157.86781351,0.00037116,2]
[337744032,1726024238954,-8444.376,0.00037182,120]
[337744033,1726024238965,-8444.376,0.00037182,120]
[337744034,1726024238975,-8444.376,0.00037182,120]
[337744035,1726024238985,-8444.376,0.00037182,120]
[337744036,1726024238995,-4286.50831608,0.00037182,120]
[337744101,1726024266619,1424.4641803,0.00034892,2]
[337744131,1726025230125,-500.59190044,0.00034,5]
[337744132,1726025230149,-190.9319583,0.0003407,2]
[337744133,1726025230173,-156.62,0.000354,31]
[337744134,1726025230194,-500.0,0.0003688,30]
[337744135,1726025230215,-1017.20396961,0.0003691,2]
[337744136,1726025247098,-1297.56810303,0.0003691,2]
[337744138,1726025345081,-3615.96344832,0.00023,2]
[337744139,1726025406064,1000.0,0.00026849,20]
[337744228,1726025438045,-1000.0,0.00037,2]
[337744231,1726025438056,-400.0,0.00037181,2]
[337744233,1726025438067,-212.0,0.00037182,2]
[337744235,1726025438078,-8444.376,0.00037182,120]
[337744237,1726025438092,-8444.376,0.00037182,120]
[337744240,1726025438102,-8444.376,0.00037182,120]
[337744242,1726025438111,-8444.376,0.00037182,120]
[337744244,1726025438121,-6832.37612959,0.00037182,120]
[337744247,1726025438144,-71.2531799,0.00037182,120]
[337744250,1726025438158,-1540.74669051,0.00037182,120]
[337744252,1726025438168,-58.7679695,0.00037349,3]
[337744295,1726025439083,1702.9016562,0.00026574,2]
[337744296,1726025439105,700.0983438,0.00026574,2]
[337744338,1726025446134,-302.7,0.00037349,3]
[337744339,1726025446143,-218.2878163,0.00037358,15]
[337744340,1726025446153,-500.0,0.00037358,15]
[337744341,1726025446163,-500.0,0.00037358,15]
[337744342,1726025446173,-500.0,0.00037358,15]
[337744343,1726025446183,-500.0,0.00037358,15]
[337744344,1726025446192,-216.55676923,0.00037358,15]
[337744345,1726025446202,-500.0,0.00037358,15]
[337744346,1726025446211,-424.52693217,0.00037358,15]
[337744347,1726025446220,-500.0,0.00037358,15]
[337744348,1726025446230,-500.0,0.00037358,15]
[337744349,1726025446239,-500.0,0.00037358,15]
[337744350,1726025446249,-3482.52133255,0.00037359,31]
[337744351,1726025446258,-1135.5179102,0.00037359,31]
[337744352,1726025446267,-198408.85156275,0.00037359,5]
[337744355,1726026454176,-220.8326281,0.00033231,2]
[337744356,1726026454200,-1016.1522407,0.00034039,2]
[337744357,1726026454225,-245.4092395,0.00034345,2]
[337744358,1726026454250,-156.63,0.000354,31]
[337744359,1726026454273,-475.25902123,0.00036932,2]
[337744360,1726026546140,-181.183948,0.00030652,2]
[337744361,1726026546163,-178.443167,0.00030652,2]
[337744362,1726026546186,-181.183948,0.00032185,2]
[337744462,1726026637956,-400.0,0.00036999,2]
[337744465,1726026637967,-395.25274607,0.00037,2]
[337744467,1726026637981,-1302.93685985,0.00037,2]
[337744469,1726026637992,-1000.0,0.00037,5]
[337744471,1726026638003,-1193.65839551,0.00037082,2]
[337744473,1726026638013,-1000.0,0.0003715,2]
[337744475,1726026638023,-502.0,0.0003718,3]
[337744477,1726026638034,-855.42239038,0.00037181,2]
[337744479,1726026638044,-500.77249222,0.00037182,2]
[337744481,1726026638053,-212.0,0.00037182,2]
[337744483,1726026638063,-8121.976,0.00037182,120]
[337744485,1726026638073,-8121.976,0.00037182,120]
[337744487,1726026638083,-8121.976,0.00037182,120]
[337744489,1726026638093,-8121.976,0.00037182,120]
[337744492,1726026638107,-3167.18599163,0.00037182,120]
[337744536,1726026640071,249.5492305,0.00034809,2]
[337744539,1726026640466,-4954.79000837,0.00037182,120]
[337744540,1726026640477,-1270.36,0.0003722,3]
[337744541,1726026640488,-1058.63,0.0003722,3]
[337744542,1726026640500,-882.19,0.0003722,3]
[337744543,1726026640510,-152.80147141,0.00037228,15]
[337744544,1726026640521,-500.0,0.00037228,15]
[337744545,1726026640532,-500.0,0.00037228,15]
[337744546,1726026640542,-500.0,0.00037228,15]
[337744547,1726026640552,-500.0,0.00037228,15]
[337744548,1726026640562,-347.16885252,0.00037228,15]
[337744549,1726026640572,-401.58973846,0.00037228,15]
[337744550,1726026640582,-500.0,0.00037228,15]
[337744551,1726026640593,-1741.26066627,0.00037229,31]
[337744552,1726026640604,-567.7589551,0.00037229,31]
[337744553,1726026640614,-5424.36997953,0.00037229,5]
[337744554,1726026640697,-1045.93943527,0.00037229,5]
[337744583,1726026643133,-11195.90425011,0.00037229,5]
[337744615,1726026646085,-989.07474452,0.00037229,5]
[337744618,1726026646204,-71048.27749266,0.00037229,5]
[337744619,1726026706062,3295.0,0.00030137,15]
[337744620,1726026743175,720.59737672,0.0002,2]
[337744621,1726026743202,579.40262328,0.0002,2]
[337744622,1726027068251,139.4390232,0.00026,60]
[337744623,1726027068277,1368.2909768,0.00026,60]
[337744630,1726027633151,-200.0,0.000215,7]
[337744631,1726027633179,-99.70100485,0.000215,7]
[337744632,1726027637131,-100.29899515,0.000215,7]
[337744633,1726027637151,-2078.2386439,0.00034918,2]
[337744634,1726027747122,-921.7613561,0.00034918,2]
[337744635,1726027747149,-161.93545496,0.00035,2]
[337744786,1726027838239,-156.64,0.000354,31]
[337744788,1726027838250,-1367.83671964,0.00036929,2]
[337744790,1726027838261,-405.56735736,0.00037,5]
[337744792,1726027838273,-290.21825122,0.00037,5]
[337744793,1726027838284,-304.21439142,0.00037,5]
[337744795,1726027838295,-1193.65839551,0.00037028,2]
[337744797,1726027838306,-1000.0,0.00037062,2]
[337744799,1726027838315,-400.0,0.00037071,2]
[337744801,1726027838325,-2931.4957939,0.00037072,2]
[337744802,1726027838335,-475.9,0.000371,3]
[337744804,1726027838346,-723.76,0.000371,3]
[337744806,1726027838356,-500.0,0.00037109,15]
[337744808,1726027838366,-500.0,0.00037109,15]
[337744809,1726027838375,-500.0,0.00037109,15]
[337744810,1726027838384,-500.0,0.00037109,15]
[337744811,1726027838393,-500.77249222,0.00037109,2]
[337744812,1726027838405,-870.63033314,0.00037109,31]
[337744813,1726027838416,-212.0,0.0003711,2]
[337744814,1726027838427,-52854.24502416,0.0003711,60]
[337744815,1726027838446,-36033.75497584,0.0003711,60]
[337744816,1726027838456,-500.0,0.00037137,15]
[337744817,1726027838467,-500.0,0.00037137,15]
[337744818,1726027838476,-331.11281692,0.00037137,15]
[337744819,1726027838486,-443.01819676,0.00037137,15]
[337744820,1726027838497,-500.0,0.00037137,15]
[337744821,1726027838507,-283.87947755,0.00037138,31]
[337744822,1726027838516,-4202.97421336,0.00037138,5]
[337744840,1726027846274,-242.05973767,0.00037138,5]
[337744841,1726027982979,-150.0,0.00039668,14]
[337744842,1726027983007,-65.85310535,0.00039668,14]
[337744915,1726029038306,-3000.0,0.00020618,2]
[337744917,1726029038316,-250.0,0.00020716,2]
[337744919,1726029038326,-250.0,0.00020773,2]
[337744921,1726029038335,-250.0,0.00020829,2]
[337744923,1726029038344,-250.0,0.00020886,2]
[337744925,1726029038354,-3004.30025046,0.000209,2]
[337744927,1726029038364,-250.0,0.00020943,2]
[337744929,1726029038374,-300.0,0.00020998,2]
[337744931,1726029038383,-300.0,0.00020999,2]
[337744933,1726029038394,-250.0,0.00021,2]
[337744935,1726029038408,-3000.0,0.00021,2]
[337744937,1726029038418,-9927.65621938,0.00021,5]
[337744939,1726029038428,-3000.0,0.0002101,2]
[337744942,1726029038439,-2222.3771069,0.00021015,2]
[337744943,1726029038449,-3000.0,0.0002102,2]
[337744946,1726029038459,-3752.190965,0.0002103,2]
[337744948,1726029038468,-876.25,0.00022,2]
[337744950,1726029038478,-3602.1356764,0.00022565,2]
[337744952,1726029038488,-166.666666,0.00022641,2]